Workbook

Sheet Sheet1
A1: Solar System
A2: Scale factor | B2: 53000000
D3: Scaled | F3: Frogmore Creek | G3: Half way back to Cambridge from Frogmore Creek | H3: Bend in road on way in to Cambridge | I3: Mini-golf | J3: Cambridge school | K3: Cambridge Park | L3: Richmond | M3: Hobart CBD | N3: Sorell | O3: Mount Stuart | P3: Bridgewater | Q3: Kingston | R3: Bagdad | S3: Margate | T3: Huonville | U3: Oatlands | V3: Ross | W3: Conara
A4: Body | B4: Diameter (km) | C4: Distance from Sun (millions of km) | D4: Diameter (cm) | E4: Distance from Sun (km) | F4: 1.16 | G4: 2 | H4: 2.6 | I4: 3.29 | J4: 3.6 | K4: 4.13 | L4: 7.6 | M4: 12.6 | N4: 10.2 | O4: 13.5 | P4: 18.9 | Q4: 21.8 | R4: 26.2 | S4: 29 | T4: 40.6 | U4: 55.9 | V4: 86 | W4: 108.4
A5: Sun | B5: 1392000 | C5: 0 | D5: =(B5/$B$2)*1000*100 -> 2626.415094 | E5: =(C5/$B$2)*1000000 -> 0 | F5: =$E5/F$4 -> 0 | G5: =$E5/G$4 -> 0 | H5: =$E5/H$4 -> 0 | I5: =$E5/I$4 -> 0 | J5: =$E5/J$4 -> 0 | K5: =$E5/K$4 -> 0 | L5: =$E5/L$4 -> 0 | M5: =$E5/M$4 -> 0 | N5: 0 | O5: 0 | P5: =$E5/P$4 -> 0 | Q5: 0 | R5: =$E5/R$4 -> 0 | S5: =$E5/S$4 -> 0 | T5: 0 | U5: =$E5/U$4 -> 0 | V5: =$E5/V$4 -> 0 | W5: =$E5/W$4 -> 0
A6: Mercury | B6: 4879 | C6: 57.91 | D6: =(B6/$B$2)*1000*100 -> 9.205660377 | E6: =(C6/$B$2)*1000000 -> 1.092641509 | F6: =$E6/F$4 -> 0.9419323357 | G6: =$E6/G$4 -> 0.5463207547 | H6: =$E6/H$4 -> 0.4202467344 | I6: =$E6/I$4 -> 0.3321098813 | J6: 0.3035115304 | K6: 0.2645621088 | L6: 0.1437686197 | M6: 0.08671758011 | N6: 0.1071217166 | O6: 0.08093640811 | P6: =$E6/P$4 -> 0.05781172008 | Q6: 0.05012117016 | R6: =$E6/R$4 -> 0.04170387441 | S6: =$E6/S$4 -> 0.03767729343 | T6: 0.02691235245 | U6: =$E6/U$4 -> 0.01954635974 | V6: =$E6/V$4 -> 0.01270513383 | W6: =$E6/W$4 -> 0.01007971872
A7: Venus | B7: 12100 | C7: 108.2 | D7: 22.83018868 | E7: 2.041509434 | F7: 1.759921926 | G7: =$E7/G$4 -> 1.020754717 | H7: =$E7/H$4 -> 0.7851959361 | I7: =$E7/I$4 -> 0.6205195848 | J7: 0.5670859539 | K7: 0.4943122116 | L7: 0.2686196624 | M7: 0.1620245583 | N7: 0.2001479837 | O7: 0.151222921 | P7: =$E7/P$4 -> 0.1080163722 | Q7: 0.09364722174 | R7: =$E7/R$4 -> 0.0779202074 | S7: =$E7/S$4 -> 0.07039687703 | T7: 0.0502834836 | U7: =$E7/U$4 -> 0.03652074122 | V7: =$E7/V$4 -> 0.02373848179 | W7: =$E7/W$4 -> 0.01883311286
A8: Earth | B8: 12740 | C8: 149.6 | D8: 24.03773585 | E8: 2.822641509 | F8: 2.433311646 | G8: =$E8/G$4 -> 1.411320755 | H8: =$E8/H$4 -> 1.08563135 | I8: =$E8/I$4 -> 0.8579457475 | J8: 0.784067086 | K8: 0.6834483074 | L8: 0.3714001986 | M8: 0.2240191674 | N8: 0.2767295597 | O8: 0.2090845563 | P8: =$E8/P$4 -> 0.1493461116 | Q8: 0.1294789683 | R8: =$E8/R$4 -> 0.1077344088 | S8: =$E8/S$4 -> 0.09733246584 | T8: 0.06952318989 | U8: =$E8/U$4 -> 0.05049448139 | V8: =$E8/V$4 -> 0.0328214129 | W8: =$E8/W$4 -> 0.02603912832
A9: Moon | B9: 3474 | C9: 149.6 | D9: 6.554716981 | E9: 2.822641509 | F9: 2.433311646 | G9: =$E9/G$4 -> 1.411320755 | H9: =$E9/H$4 -> 1.08563135 | I9: =$E9/I$4 -> 0.8579457475 | J9: 0.784067086 | K9: 0.6834483074 | L9: 0.3714001986 | M9: 0.2240191674 | N9: 0.2767295597 | O9: 0.2090845563 | P9: =$E9/P$4 -> 0.1493461116 | Q9: 0.1294789683 | R9: =$E9/R$4 -> 0.1077344088 | S9: =$E9/S$4 -> 0.09733246584 | T9: 0.06952318989 | U9: =$E9/U$4 -> 0.05049448139 | V9: =$E9/V$4 -> 0.0328214129 | W9: =$E9/W$4 -> 0.02603912832
A10: Mars | B10: 6779 | C10: 227.9 | D10: 12.79056604 | E10: 4.3 | F10: 3.706896552 | G10: =$E10/G$4 -> 2.15 | H10: =$E10/H$4 -> 1.653846154 | I10: =$E10/I$4 -> 1.306990881 | J10: 1.194444444 | K10: 1.041162228 | L10: 0.5657894737 | M10: 0.3412698413 | N10: 0.4215686275 | O10: 0.3185185185 | P10: =$E10/P$4 -> 0.2275132275 | Q10: 0.1972477064 | R10: =$E10/R$4 -> 0.1641221374 | S10: =$E10/S$4 -> 0.1482758621 | T10: 0.10591133 | U10: =$E10/U$4 -> 0.07692307692 | V10: =$E10/V$4 -> 0.05 | W10: =$E10/W$4 -> 0.03966789668
A11: Ceres Asteroid Belt | B11: 950 | C11: 413.8 | D11: 1.79245283 | E11: 7.80754717 | F11: 6.730644112 | G11: =$E11/G$4 -> 3.903773585 | H11: =$E11/H$4 -> 3.002902758 | I11: =$E11/I$4 -> 2.373114641 | J11: 2.168763103 | K11: 1.890447257 | L11: 1.027308838 | M11: 0.6196466008 | N11: 0.765445801 | O11: 0.5783368274 | P11: =$E11/P$4 -> 0.4130977339 | Q11: 0.3581443656 | R11: =$E11/R$4 -> 0.2979979836 | S11: =$E11/S$4 -> 0.2692257645 | T11: 0.1923041175 | U11: =$E11/U$4 -> 0.1396698957 | V11: =$E11/V$4 -> 0.09078543221 | W11: =$E11/W$4 -> 0.07202534289
A12: Jupiter | B12: 139800 | C12: 778.6 | D12: 263.7735849 | E12: 14.69056604 | F12: 12.66428107 | G12: =$E12/G$4 -> 7.345283019 | H12: =$E12/H$4 -> 5.650217707 | I12: =$E12/I$4 -> 4.465217641 | J12: 4.080712788 | K12: 3.557037782 | L12: 1.932969215 | M12: 1.16591794 | N12: 1.440251572 | O12: 1.088190077 | P12: =$E12/P$4 -> 0.7772786263 | Q12: 0.673879176 | R12: =$E12/R$4 -> 0.5607086274 | S12: =$E12/S$4 -> 0.5065712427 | T12: 0.3618366019 | U12: =$E12/U$4 -> 0.2628008236 | V12: =$E12/V$4 -> 0.1708205353 | W12: =$E12/W$4 -> 0.1355218269
A13: Saturn | B13: 116500 | C13: 1433 | D13: 219.8113208 | E13: 27.03773585 | F13: 23.30839297 | G13: =$E13/G$4 -> 13.51886792 | H13: =$E13/H$4 -> 10.39912917 | I13: =$E13/I$4 -> 8.218156793 | J13: 7.51048218 | K13: 6.546667276 | L13: 3.557596822 | M13: 2.145852052 | N13: 2.650758417 | O13: 2.002795248 | P13: =$E13/P$4 -> 1.430568034 | Q13: 1.240263112 | R13: =$E13/R$4 -> 1.031974651 | S13: =$E13/S$4 -> 0.9323357189 | T13: 0.665954085 | U13: =$E13/U$4 -> 0.4836804266 | V13: =$E13/V$4 -> 0.3143922773 | W13: =$E13/W$4 -> 0.2494256075
A14: Uranus | B14: 50720 | C14: 2877 | D14: 95.69811321 | E14: 54.28301887 | F14: 46.79570592 | G14: =$E14/G$4 -> 27.14150943 | H14: =$E14/H$4 -> 20.87808418 | I14: =$E14/I$4 -> 16.49939783 | J14: 15.07861635 | K14: 13.1435881 | L14: 7.142502483 | M14: 4.308176101 | N14: 5.321864595 | O14: 4.020964361 | P14: =$E14/P$4 -> 2.8721174 | Q14: 2.490046737 | R14: =$E14/R$4 -> 2.071870949 | S14: =$E14/S$4 -> 1.871828237 | T14: 1.337020169 | U14: =$E14/U$4 -> 0.9710736828 | V14: =$E14/V$4 -> 0.6311978938 | W14: =$E14/W$4 -> 0.5007658567
A15: Neptune | B15: 49250 | C15: 4503 | D15: 92.9245283 | E15: 84.96226415 | F15: 73.24333116 | G15: =$E15/G$4 -> 42.48113208 | H15: =$E15/H$4 -> 32.6777939 | I15: =$E15/I$4 -> 25.8243964 | J15: 23.60062893 | K15: 20.57197679 | L15: 11.17924528 | M15: 6.743036837 | N15: 8.32963374 | O15: 6.293501048 | P15: =$E15/P$4 -> 4.495357892 | Q15: 3.897351567 | R15: =$E15/R$4 -> 3.24283451 | S15: =$E15/S$4 -> 2.929733247 | T15: 2.092666605 | U15: =$E15/U$4 -> 1.519897391 | V15: =$E15/V$4 -> 0.9879333041 | W15: =$E15/W$4 -> 0.7837847246
A16: Pluto, Kuiper Belt | B16: 2372 | C16: 5874 | D16: 4.475471698 | E16: 110.8301887 | F16: 95.5432661 | G16: =$E16/G$4 -> 55.41509434 | H16: =$E16/H$4 -> 42.62699565 | I16: =$E16/I$4 -> 33.68698744 | J16: 30.78616352 | K16: 26.83539677 | L16: 14.58291956 | M16: 8.796046721 | N16: 10.86570477 | O16: 8.209643606 | P16: =$E16/P$4 -> 5.864031147 | Q16: 5.083953609 | R16: =$E16/R$4 -> 4.230159873 | S16: =$E16/S$4 -> 3.821730644 | T16: 2.729807603 | U16: =$E16/U$4 -> 1.98265096 | V16: =$E16/V$4 -> 1.288723124 | W16: =$E16/W$4 -> 1.022418715
A18: Earth-Moon distance | B18: 384000 | D18: 724.5283019 | E18: =D18/150 -> 4.830188679
E19: Squash | F19: Golf ball | G19: Tennis ball | H19: Cricket | I19: Soccer ball | J19: Basket ball | K19: Volleyball
A20: Body | B20: Diameter (km) | D20: Diameter (cm) | E20: 4 | F20: 4.267 | G20: 6.7 | H20: 7.2 | I20: 23 | J20: 24 | K20: =8.15*2.54 -> 20.701
A21: Sun | B21: 1392000 | D21: =(B21/$B$2)*1000*100 -> 2626.415094 | E21: =$D21/E$20 -> 656.6037736 | F21: =$D21/F$20 -> 615.5179504 | G21: 392.0022529 | H21: 364.7798742 | I21: 114.1919606 | J21: 109.4339623 | K21: 126.8738271
A22: Mercury | B22: 4879 | D22: =(B22/$B$2)*1000*100 -> 9.205660377 | E22: =$D22/E$20 -> 2.301415094 | F22: 2.157408103 | G22: 1.373979161 | H22: 1.278563941 | I22: 0.4002461034 | J22: 0.3835691824 | K22: 0.4446964097
A23: Venus | B23: 12100 | D23: 22.83018868 | E23: =$D23/E$20 -> 5.70754717 | F23: 5.350407471 | G23: 3.407490848 | H23: 3.170859539 | I23: 0.9926168991 | J23: 0.9512578616 | K23: 1.102854388
A24: Earth | B24: 12740 | D24: 24.03773585 | E24: 6.009433962 | F24: 5.63340423 | G24: 3.587721769 | H24: 3.338574423 | I24: 1.04511895 | J24: 1.001572327 | K24: 1.161187182
A25: Moon | B25: 3474 | D25: 6.554716981 | E25: 1.638679245 | F25: 1.536141781 | G25: 0.9783159673 | H25: 0.9103773585 | I25: 0.2849876948 | J25: 0.2731132075 | K25: 0.3166376978
A26: Mars | B26: 6779 | D26: 12.79056604 | E26: 3.197641509 | F26: 2.997554731 | G26: 1.909039707 | H26: 1.776467505 | I26: 0.5561115669 | J26: 0.5329402516 | K26: 0.6178718921
A27: Ceres Asteroid Belt | B27: 950 | D27: 1.79245283 | E27: 0.4481132075 | F27: 0.4200733138 | G27: 0.2675302732 | H27: 0.248951782 | I27: 0.07793273175 | J27: 0.07468553459 | K27: 0.08658774118
A28: Jupiter | B28: 139800 | D28: 263.7735849 | E28: 65.94339623 | F28: 61.8171045 | G28: 39.36919178 | H28: 36.63522013 | I28: 11.46841674 | J28: 10.99056604 | K28: 12.7420697
A29: Saturn | B29: 116500 | D29: 219.8113208 | E29: 54.95283019 | F29: 51.51425375 | G29: 32.80765981 | H29: 30.5293501 | I29: 9.557013946 | J29: 9.158805031 | K29: 10.61839142
A30: Uranus | B30: 50720 | D30: 95.69811321 | E30: 23.9245283 | F30: 22.42749314 | G30: 14.28330048 | H30: 13.29140461 | I30: 4.160787531 | J30: 3.987421384 | K30: 4.622873929
A31: Neptune | B31: 49250 | D31: 92.9245283 | E31: 23.23113208 | F31: 21.77748495 | G31: 13.86933258 | H31: 12.90618449 | I31: 4.040196883 | J31: 3.871855346 | K31: 4.488890793
A32: Pluto, Kuiper Belt | B32: 2372 | D32: 4.475471698 | E32: 1.118867925 | F32: 1.048856737 | G32: 0.6679808505 | H32: 0.6215932914 | I32: 0.194585726 | J32: 0.1864779874 | K32: 0.216195918
